{"text_format":"1","workbook":"xlsx","n_sheets":4,"sheets":["Wybór języka","PL","BS","CF"],"not_rendered":{"charts":0,"images":0,"macros":1,"external_links":2,"defined_names":10,"comments":0,"pivot_tables":0},"unopened":[],"bounds":{"document_bytes":16777216,"sheet_cells":100000,"rows_first":2000,"rows_last":500,"rows_between":2000,"halvings":0,"cell_chars":16384,"cell_head_chars":4096},"cells_cut":0,"cells_raw":0,"read":"whole","date_system":"1900"}

{"sheet":"Wybór języka","index":0,"n_rows":0,"n_cols":0,"rows_kept":0,"cut":false,"hidden":false,"merged":[]}

{"sheet":"PL","index":1,"n_rows":36,"n_cols":8,"rows_kept":36,"cut":false,"hidden":false,"merged":[[0,1,2,1],[0,0,2,0]]}
["P&L (Asseco Poland S.A.)","P&L (Asseco Poland S.A.)","Q2 2019","Q1 2019","Q4 2018","Q3 2018","Q2 2018","Q1 2018"]
[]
[null,null,"mln PLN","mln PLN","mln PLN","mln PLN","mln PLN","mln PLN"]
[]
["Przychody ze sprzedaży","Sales revenues",210,195.1,251.5,211,225.4,205.4]
["Koszt własny sprzedaży","Cost of sales ",-146.5,-137.69999999999999,-170.8,-133.30000000000001,-147.5,-137]
["Odpis (odwrócenie odpisu) z tytułu utraty wartości należności handlowych","Write-off (reversal of write-off) of trade receivables",0.2,2.1,0.2,-1.1000000000000001,-2.4,6.7]
[]
["Zysk brutto ze sprzedaży","Gross profit on sales",{"$f":"SUM(C5:C7)","v":63.7},59.500000000000007,80.899999999999991,76.599999999999994,75.5,75.100000000000009]
[]
["Koszty sprzedaży","Selling costs ",-10.5,-10.9,-13.5,-10.7,-11.4,-10.8]
["Koszty ogólnego zarządu","General administrative expenses ",-21.4,-18.899999999999999,-23.6,-18.899999999999999,-21,-18.5]
[]
["Zysk netto ze sprzedaży","Net profit on sales",{"$f":"SUM(C9,C11:C12)","v":31.800000000000004},29.70000000000001,43.79999999999999,46.999999999999993,43.099999999999994,45.800000000000011]
[]
["Pozostałe przychody operacyjne","Other operating income",0.3,0.2,1,0.8,0.8,0.8]
["Pozostałe koszty operacyjne","Other operating expenses ",-0.2,-0.8,-0.2,-0.2,-0.8,-0.2]
["Odpis (odwrócenie odpisu) z tytułu utraty wartości instrumentów finansowych","Write-off (reversal of write-off) of financial instruments",null,null,0,0,0,0]
[]
["Zysk z działalności operacyjnej ","Operating profit ",{"$f":"SUM(C14,C16:C18)","v":31.900000000000002},29.100000000000009,44.599999999999987,47.599999999999987,43.099999999999994,46.400000000000006]
[]
["Działalność finansowa","Financial activity",21.9,80.099999999999994,6.4,3.3,7.3,12]
[]
["Zysk brutto","Pre-tax profit",{"$f":"SUM(C20,C22)","v":53.8},109.2,50.999999999999986,50.899999999999984,50.399999999999991,58.400000000000006]
[]
["Podatek dochodowy","Corporate income tax",-4.8,-5.8,-10.1,-10.7,-10.3,-13.1]
[]
["Zysk netto z działalności kontynuawanej za okres sprawozdawczy","Net profit for the reporting period from continued operations",{"$f":"SUM(C24,C26)","v":49},103.4,40.899999999999984,40.199999999999989,40.099999999999994,45.300000000000004]
[]
["Zysk netto z działalności zaniechanej za okres sprawozdawczy","Net profit for the reporting period from discontinued operations",0,0,0,0,0,0]
[]
["Zysk netto za okres sprawozdawczy","Net profit for the reporting period",{"$f":"SUM(C28,C30)","v":49},103.4,40.899999999999984,{"$f":"SUM(F28,F30)","v":40.199999999999989},40.099999999999994,45.300000000000004]
[]
["Zysk netto przypadający na jedną akcję (w złotych) z działalności kontynuowanej","Earnings per share (in PLN) from continued operations:"]
["EPS","EPS",0.59,1.25,0.5,0.48,0.48,0.55000000000000004]
["EPS rozwodniony","Diluted EPS",0.59,1.25,0.5,0.48,0.48,0.55000000000000004]

{"sheet":"BS","index":2,"n_rows":63,"n_cols":8,"rows_kept":63,"cut":false,"hidden":false,"merged":[[0,1,2,1],[0,0,2,0]]}
["BILANS ASSECO POLAND S.A.","STATEMENT OF FINANCIAL POSITION OF ASSECO POLAND S.A.","Q2 2019","Q1 2019","Q4 2018","Q3 2018","Q2 2018","Q1 2018"]
[]
[null,null,"mln PLN","mln PLN","mln PLN","mln PLN","mln PLN","mln PLN"]
[]
[]
[]
["Aktywa trwałe","Non-current assets"]
["Rzeczowe aktywa trwałe","Property, plant and equipment",271.2,268.10000000000002,310.2,312.2,314.89999999999998,316.7]
["Wartości niematerialne","Intangible assets",2215.3000000000002,2218.1999999999998,2213.1999999999998,2208.5,2210.5,2213.4]
["w tym wartość firmy z połączenia","of which goodwill from mergers",1932.5,1932.5,1932.5,1932.5,1932.5,1932.5]
["Aktywa z tytułu prawa do użytkowania","Right-to-use assets",95.7,99.9,0,0,0,0]
["Nieruchomości inwestycyjne","Investment property",0.4,0.4,0.4,0.4,0.4,0.4]
["Inw. w jedn. zależnych i stowarzyszonych","Inv. in subsidiaries and associates",2073.1999999999998,2069.6999999999998,2052.1,2056.1,2055,2052.5]
["Należności długoterminowe","Long-term receivables",76.900000000000006,82,82.7,81.2,85.5,88.3]
["Długoterminowe aktywa finansowe ","Long-term financial assets ",32,31.4,46.4,14,13.5,37.1]
["Długoterm. rozl. międzyokresowe ","Long-term prepayments and accr. inc. ",4.9000000000000004,5.6,6,5.9,4.3,1]
[null,null,{"$f":"SUM(C8:C9,C11:C16)","v":4769.5999999999985},{"$f":"SUM(D8:D9,D11:D16)","v":4775.2999999999993},{"$f":"SUM(E8:E9,E11:E16)","v":4710.9999999999991},4678.2999999999993,4684.1000000000004,4709.4000000000005]
["Aktywa obrotowe ","Current assets "]
["Zapasy","Inventories",2.6,4.3,2.6,4.7,4.7,2.8]
["Należności z tytułu dostaw i usług","Trade receivables",203.1,138,173.7,160.4,187.3,373.6]
["Aktywa z tytułu umów z klientami ","Contract assets",119.4,144.9,122.4,151.69999999999999,164.9,0]
["Należności z tyt. podatku dochodowego od osób prawnych","Corporate income tax receivable",0.9,0,0,0.1,0.1,28.3]
["Pozostałe należności","Other receivables",22.7,89.3,17.399999999999999,27.3,24.2,25.3]
["Pozostałe aktywa niefinansowe","Other non-financial assets",0.9,1.8,1.6,3.8,1.6,1.8]
["Aktywa finansowe","Financial assets",1.6,1.4,1.4,23.8,23.3,5.7]
["Rozliczenia międzyokresowe ","Prepayments and accrued income ",22.1,24,16.100000000000001,16,13.2,14.7]
["Środki pieniężne i depozyty krótkoterminowe","Cash and short-term deposits",35.1,247.8,264.7,184.5,147.80000000000001,298.39999999999998]
["Aktywa przeznaczone do sprzedaży","Assets held for sale",1.9,3.5,6,6,3.9,3.9]
[null,null,{"$f":"SUM(C19:C28)","v":410.3},655,605.9,578.29999999999995,571,754.5]
[]
[]
["SUMA AKTYWÓW","TOTAL ASSETS",{"$f":"SUM(C17,C29)","v":5179.8999999999987},5430.2999999999993,{"$f":"SUM(E17,E29)","v":5316.8999999999987},5256.5999999999995,5255.1,5463.9000000000005]
[]
["KAPITAŁ WŁASNY OGÓŁEM","TOTAL EQUITY",4838.5,5046,4949.8,4909,4869,5078.8999999999996]
[]
["Zobowiązania długoterminowe","Non-current liabilities"]
["Długoterminowe oprocentowane kredyty bankowe, pożyczki, dłużne papiery wartościowe","Long-term interest-bearing bank loans, borrowings and debt securities",0,0,38.799999999999997,42.5,46.4,59.9]
["Dł. zob. z tyt. leasingu finansowego","Long-term finance lease liabilities",67.599999999999994,76.099999999999994,21.8,27.7,34.200000000000003,38.799999999999997]
["Długoterminowe zobowiązania finansowe","Long-term financial liabilities",2.8,2.7,2.2000000000000002,0,1.2,0]
["Rezerwa z tytułu odr. podatku doch.","Deferred income tax liabilities",28.4,29.5,26.3,28.2,28,25]
["Długoterminowe zobowiązania z tytułu umów z klientami","Long-term contract liabilities",8.3000000000000007,8.3000000000000007,8.6999999999999993,6,4.8,0]
["Długoterminowe pozostałe zobowiązania ","Other long-term liabilities ",0.3,0.3,0.5,0.5,0.1,0.3]
["Długoterminowe rezerwy","Long-term provisions",11.3,9,9.6999999999999993,12.5,14.7,17]
["Długoterminowe rozliczenia międzyokresowe przychodów","Long-term deferred income",33.1,33,32.4,31.9,31.5,37.1]
[null,null,{"$f":"SUM(C37:C44)","v":151.79999999999998},158.89999999999998,140.4,149.30000000000001,160.89999999999998,178.1]
["Zobowiązania krótkoterminowe","Current liabilities"]
["Oprocentowane kredyty bankowe, pożyczki, dłużne papiery wartościowe","Interest-bearing bank loans, borrowings and debt securities",1.1000000000000001,25.9,15.2,15.3,15.4,25.2]
["Zob. z tyt. leasingu finansowego","Finance lease liabilities",31.8,31.9,23.6,23,23.1,22]
["Inne zobowiązania finansowe","Other financial liabilities",2.2999999999999998,2.2000000000000002,1,1.1000000000000001,1.8,0.1]
["Zobowiązania z tytułu dostaw i usług","Trade payables",63.2,66.900000000000006,75.8,66,85.9,70.400000000000006]
["Krótkoterminowe zobowiązania z tytułu umów z klientami ","Current contract liabilities",27.6,23.5,26.5,20,24.7,0]
["Zobowiązania budżetowe","Liabilities to the state and local budgets",20.399999999999999,12.7,15.6,13,14.6,17.5]
["Zobowiązania z tytułu podatku dochodowego od osób prawych","Corporate income tax payable",0,10.3,15.1,8.4,4.0999999999999996,0]
["Pozostałe zobowiązania","Other liabilities",6.4,2.9,7,9.6999999999999993,11.2,9.9]
["Rezerwy","Provisions",5.8,10.3,11.8,10.4,10.5,10.7]
["Rozliczenia międzyokresowe kosztów","Deferred income",29.8,37.6,33.799999999999997,30.1,32.5,28]
["Rozliczenia międzyokresowe przychodów","Accruals",1.2,1.2,1.3,1.3,1.4,23.1]
[null,null,{"$f":"SUM(C47:C57)","v":189.60000000000002},225.4,226.7,{"$f":"SUM(F47:F57)","v":198.3},225.2,206.9]
[]
["SUMA ZOBOWIĄZAŃ","TOTAL LIABILITIES",{"$f":"SUM(C45,C58)","v":341.4},384.29999999999995,{"$f":"SUM(E45,E58)","v":367.1},347.6,386.09999999999997,385]
[]
["SUMA PASYWÓW","TOTAL EQUITY AND LIABILITIES",{"$f":"SUM(C34,C60)","v":5179.8999999999996},5430.3,5316.9000000000005,{"$f":"SUM(F34,F60)","v":5256.6},5255.1,5463.9]
[null,null,{"$f":"C62-C32","v":0},0,0,0,0,0]

{"sheet":"CF","index":3,"n_rows":53,"n_cols":4,"rows_kept":53,"cut":false,"hidden":false,"merged":[[0,0,1,0],[0,1,1,1]]}
["RACHUNEK PRZEPŁYWÓW PIENIĘŻNYCH ASSECO POLAND S.A.","STATEMENT OF CASH FLOWS OF ASSECO POLAND S.A.","HY 2019","HY 2018"]
[null,null,"mln PLN","mln PLN"]
[]
["Przepływy środków pieniężnych z działalności operacyjnej","Cash flows – operating activities"]
["Zysk brutto","Pre-tax profit",163,108.8]
["Korekty o pozycje:","Total adjustments:",{"$f":"SUM(C7:C16)","v":-115.4},{"$f":"SUM(D7:D16)","v":6.6}]
["Amortyzacja","Depreciation and amortization",32.299999999999997,27]
["Zmiany stanu kapitału pracującego","Changes in working capital",-46.5,-2.7]
["Przychody/koszty z tytułu odsetek","Interest income/expenses",0,-0.6]
["Zyski/straty z tytułu różnic kursowych","Gain / loss on foreign exchange differences",-0.5,-1.5]
["Przychody z tytułu dywidend","Dividend income",-100,-15.6]
["Przychody ze sprzedaży akcji/udziałów w jednostkach powiązanych","Gain / loss on sales of share in subsidiaries",-0.7,0]
["Pozostałe przychody/koszty finansowe","Other financial (income)/ costs",0,0.6]
["Odpis aktualizujący wartości niematerialne","Intangible assets impairment",0,0]
["Zyski/straty z działalności inwestycyjnej","Gain / loss on investing activities",0,-0.6]
["Pozostałe korekty zysku brutto","Other pre-tax profit adjustments"]
["Środki pieniężne netto wygenerowane z dział. operacyjnej","Cash generated from operating activities",{"$f":"SUM(C5:C6)","v":47.599999999999994},{"$f":"SUM(D5:D6)","v":115.39999999999999}]
["(Zapłacony podatek dochodowy) / Otrzymane zwroty podatku dochodowego","(Corporate income tax paid) / Corporate income tax receipts",-22,17.2]
["Środki pieniężne netto z działalności operacyjnej ","Net cash provided by (used in) operating activities ",{"$f":"SUM(C17:C18)","v":25.599999999999994},{"$f":"SUM(D17:D18)","v":132.6}]
[]
["Przepływy środków pieniężnych z działalności inwestycyjnej","Cash flows – investing activities"]
["Wpływy ze sprzedaży AT i WN [1]","Disposal of tangible FA and IA [1]",4.0999999999999996,0.7]
["Nabycie AT i WN [1]","Acquisition of tangible FA and IA [1]",-17.8,-10.9]
["Wydatki z tytułu prowadzonych projektów rozwojowych","Expenditures for development projects in progress",-13.5,-5.2]
["Wpływy ze sprzedaży/liwidacji inwestycji w jednostkach powiązanych","Disposal of shares in related companies",4.7,8.3000000000000007]
["Nabycie akcji/udziałów w jednostkach powiązanych","Acquisition of shares in related companies",-2.9,-15.6]
["Nabycie aktywów finansowych","Acquisition of financial assets",0,0]
["Wpływy ze sprzedaży aktywów finansowych P&L [2]","Disposal of financial assets P&L [2]"]
["Pożyczki spłacone","Loans collected",0.9,9.5]
["Pożyczki udzielone","Loans granted",-2.6,-3.7]
["Otrzymane odsetki","Interest received",2.7,3.1]
["Dywidendy otrzymane","Dividends received",93.5,10.199999999999999]
["Pozostałe wpływy","Other inflows",0,1.1000000000000001]
["Środki pieniężne netto wykorzystane w działalności inwestycyjnej","Net cash provided by (used in) investing activities",{"$f":"SUM(C22:C33)","v":69.099999999999994},{"$f":"SUM(D22:D33)","v":-2.5000000000000031}]
[]
["Przepływy środków pieniężnych z działalności finansowej","Cash flows – financing activities"]
["Wypłacona dywidenda","Dividend paid out",-254.8,-249.8]
["Wpływy z tytułu zaciągnięcia kredytów","Proceeds from bank loans"]
["Wydatki z tytułu spłaty kredytów","Repayment of bank loans and borrowings",-52.7,-27]
["Dotacje otrzymane do zakupu środków trwałych lub/i projektów rozwojowych","Subsidies received",2.2999999999999998,0]
["Dotacje zwrócone","Subsidies returned"]
["Spłata zobowiązań z tytułu leasingu finansowego","Finance lease liabilities paid",-16.2,-10.7]
["Zapłacone odsetki","Interest paid",-2.9,-3.1]
["Środki pieniężne netto z działalności finansowej","Net cash provided by (used in) financing activities",{"$f":"SUM(C37:C43)","v":-324.29999999999995},{"$f":"SUM(D37:D43)","v":-290.60000000000002}]
["Zmiana netto stanu środków pieniężnych i ich ekwiwalentów ","Net change in cash and cash equivalents ",{"$f":"C19+C34+C44","v":-229.59999999999997},{"$f":"D19+D34+D44","v":-160.50000000000003}]
["Różnice kursowe netto","Net foreign exchange differences",0,0.3]
["Środki pieniężne i ich ekwiwalenty na dzień 1 stycznia","Cash and cash equivalents at 1 January",264.7,308]
["Środki pieniężne i ich ekwiwalenty na dzień 31 marca","Cash and cash equivalents at 31 March",{"$f":"SUM(C45:C47)","v":35.100000000000023},{"$f":"SUM(D45:D47)","v":147.79999999999998}]
[null,null,{"$f":"C47+C46+C45-C48","v":0},{"$f":"D47+D46+D45-D48","v":0}]
[]
["Objaśnienia:","Legend:"]
["[1] AT i WN - aktywów trwałych i wartości niematerialnych","[1] FA and IA - fixed assets and intangible assets"]
["[2] Wpływy / wydatki ze sprzedaży aktywów finansowych wycenianych do wartości godziwej przez rachunek zysków i strat","[2] Disposal / Purchase of financial assets carried at fair value through profit or loss"]